[Event "XX Gran Hotel Bali-B 2023"]
[Site "Benidorm"]
[Date "2023.12.08"]
[Round "9.6"]
[White "Talledo Lagos, Cesar Frank"]
[Black "Bethencourt Hernandez, Alberto"]
[Result "1-0"]
[ECO "B06"]
[WhiteElo "1993"]
[BlackElo "1869"]
[Annotator "NA RC"]
[PlyCount "53"]
[EventDate "2023.12.02"]
[EventType "swiss"]
[EventCountry "ESP"]
[SourceTitle "playchess.com"]
[Source "ChessBase"]
[SourceQuality "1"]
[TimeControl "5400+30"]

1. d4 {[%emt 0:13:02]} g6 {[%emt 0:00:12]} 2. e4 {[%emt 0:00:19]} Bg7 {[%emt 0:00:19]} 3. Nc3 {[%emt 0:00:07]} d6 {[%emt 0:00:23]} 4. Be3 {[%emt 0:00:17]} a6 {[%emt 0:01:01]} 5. a4 {[%emt 0:01:39]} b6 {[%emt 0:02:12]} 6. Bc4 {[%emt 0:01:59]} Nf6 {[%emt 0:01:38]} 7. Nf3 {[%emt 0:10:45]} Bb7 {[%emt 0:05:03]} 8. Qe2 {[%emt 0:00:48]} e6 {[%emt 0:06:42]} 9. e5 {[%emt 0:01:51]} Nfd7 {[%emt 0:03:06]} 10. d5 {[%emt 0:03:05]} Nxe5 {[%emt 0:07:46]} 11. Nxe5 {[%emt 0:01:12]} Bxe5 {[%emt 0:05:19]} 12. f4 {[%emt 0:06:16]} Bxc3+ {[%emt 0:06:15]} 13. bxc3 {[%emt 0:00:15]} Qh4+ {[%emt 0:00:17]} 14. Bf2 {[%emt 0:11:47]} Qxf4 {[%emt 0:01:00]} 15. dxe6 {[%emt 0:02:10]} f6 {[%emt 0:00:42]} 16. O-O {[%emt 0:00:55]} Qe4 {[%emt 0:10:24]} 17. Bd4 {[%emt 0:08:58]} Qxe2 {[%emt 0:01:38]} 18. Bxe2 {[%emt 0:00:04]} Bd5 {[%emt 0:02:37]} 19. Bxf6 {[%emt 0:04:56]} O-O {[%emt 0:00:48]} 20. Bg4 {[%emt 0:03:00]} Re8 {[%emt 0:02:59]} 21. e7 {[%emt 0:02:17]} Ra7 {[%emt 0:00:24]} 22. Rad1 {[%emt 0:00:27]} Bf7 {[%emt 0:02:16]} 23. Bg5 {[%emt 0:00:34]} h5 {[%emt 0:03:28]} 24. Rxf7 {[%emt 0:01:46]} Kxf7 {[%emt 0:00:05]} 25. Rf1+ {[%emt 0:00:04]} Kg7 {[%emt 0:00:06]} 26. Be6 {[%emt 0:00:13]} Rxe7 {[%emt 0:02:47]} 27. Bxe7 {[%emt 0:00:02]} 1-0

[Event "XX Gran Hotel Bali-B 2023"]
[Site "Benidorm"]
[Date "2023.12.08"]
[Round "9.7"]
[White "Lopez Ruiz, Jarein"]
[Black "Fernandez Alonso, Miguel Angel"]
[Result "1-0"]
[ECO "A27"]
[WhiteElo "1958"]
[BlackElo "1904"]
[Annotator "NA RC"]
[PlyCount "109"]
[EventDate "2023.12.02"]
[EventType "swiss"]
[EventCountry "ESP"]
[SourceTitle "playchess.com"]
[Source "ChessBase"]
[SourceQuality "1"]
[TimeControl "5400+30"]

1. c4 {[%emt 0:05:10]} e5 {[%emt 0:00:25]} 2. Nc3 {[%emt 0:00:06]} Nc6 {[%emt 0:00:09]} 3. Nf3 {[%emt 0:00:14]} Bc5 {[%emt 0:00:56]} 4. e3 {[%emt 0:04:23]} Nf6 {[%emt 0:08:26]} 5. a3 {[%emt 0:13:25]} d6 {[%emt 0:02:00]} 6. d4 {[%emt 0:01:12]} exd4 {[%emt 0:01:46]} 7. exd4 {[%emt 0:00:02]} Bb6 {[%emt 0:00:11]} 8. b4 {[%emt 0:04:27]} a6 {[%emt 0:00:56]} 9. Be2 {[%emt 0:12:14]} O-O {[%emt 0:00:52]} 10. O-O {[%emt 0:03:38]} Bg4 {[%emt 0:00:34]} 11. Be3 {[%emt 0:03:00]} Ne7 {[%emt 0:00:44]} 12. h3 {[%emt 0:01:55]} Bh5 {[%emt 0:00:29]} 13. g4 {[%emt 0:10:05]} Bg6 {[%emt 0:01:57]} 14. c5 {[%emt 0:07:09]} Ba7 {[%emt 0:00:44]} 15. Bg5 {[%emt 0:04:49]} Ne4 {[%emt 0:02:47]} 16. Nxe4 {[%emt 0:00:32]} Bxe4 {[%emt 0:00:07]} 17. Nd2 {[%emt 0:01:35]} Bd5 {[%emt 0:01:55]} 18. Bf3 {[%emt 0:06:26]} f6 {[%emt 0:02:54]} 19. Bf4 {[%emt 0:00:31]} dxc5 {[%emt 0:02:15]} 20. dxc5 {[%emt 0:01:41]} Bxf3 {[%emt 0:01:07]} 21. Qxf3 {[%emt 0:01:22]} Nd5 {[%emt 0:00:23]} 22. Nc4 {[%emt 0:01:50]} c6 {[%emt 0:04:53]} 23. Rad1 {[%emt 0:00:59]} Qd7 {[%emt 0:02:19]} 24. Ne3 {[%emt 0:01:22]} Rfd8 {[%emt 0:03:47]} 25. Nxd5 {[%emt 0:00:48]} cxd5 {[%emt 0:00:07]} 26. Bd6 {[%emt 0:00:19]} Qc6 {[%emt 0:02:04]} 27. Qxd5+ {[%emt 0:00:40]} Qxd5 {[%emt 0:00:14]} 28. Rxd5 {[%emt 0:00:02]} Rd7 {[%emt 0:00:19]} 29. Rfd1 {[%emt 0:01:15]} Rad8 {[%emt 0:00:10]} 30. R5d2 {[%emt 0:00:30]} Bb8 {[%emt 0:00:58]} 31. Bf4 {[%emt 0:02:14]} Rxd2 {[%emt 0:00:12]} 32. Rxd2 {[%emt 0:00:01]} Rxd2 {[%emt 0:00:09]} 33. Bxd2 {[%emt 0:00:01]} Kf7 {[%emt 0:00:15]} 34. Kf1 {[%emt 0:00:30]} Ke6 {[%emt 0:00:32]} 35. Ke2 {[%emt 0:00:06]} f5 {[%emt 0:00:22]} 36. Kd3 {[%emt 0:01:06]} fxg4 {[%emt 0:00:23]} 37. hxg4 {[%emt 0:00:01]} Kd5 {[%emt 0:00:28]} 38. f4 {[%emt 0:03:14]} g6 {[%emt 0:00:10]} 39. Be3 {[%emt 0:02:12]} Bc7 {[%emt 0:03:49]} 40. a4 {[%emt 0:00:31]} Bd8 {[%emt 0:00:50]} 41. Bd4 {[%emt 0:01:52]} h5 {[%emt 0:03:23]} 42. f5 {[%emt 0:00:35]} gxf5 {[%emt 0:00:19]} 43. gxh5 {[%emt 0:00:28]} Bg5 {[%emt 0:00:26]} 44. Bg7 {[%emt 0:04:13]} Ke6 {[%emt 0:02:51]} 45. h6 {[%emt 0:01:06]} Kf7 {[%emt 0:00:11]} 46. b5 {[%emt 0:00:35]} axb5 {[%emt 0:00:31]} 47. axb5 {[%emt 0:00:02]} Bd8 {[%emt 0:00:40]} 48. Kd4 {[%emt 0:01:33]} Kg6 {[%emt 0:01:14]} 49. Ke5 {[%emt 0:01:19]} Bc7+ {[%emt 0:00:20]} 50. Ke6 {[%emt 0:00:18]} Bg3 {[%emt 0:01:48]} 51. Kd7 {[%emt 0:00:52]} Bf2 {[%emt 0:00:21]} 52. c6 {[%emt 0:01:26]} bxc6 {[%emt 0:00:03]} 53. bxc6 {[%emt 0:00:07]} Bb6 {[%emt 0:00:10]} 54. Bd4 {[%emt 0:00:34]} Ba5 {[%emt 0:00:24]} 55. Bc3 {[%emt 0:01:23]} 1-0

[Event "XX Gran Hotel Bali-B 2023"]
[Site "Benidorm"]
[Date "2023.12.08"]
[Round "9.8"]
[White "Lloret Climent, Miguel"]
[Black "Ionita, Emilian-Paul"]
[Result "1-0"]
[ECO "A42"]
[WhiteElo "1954"]
[BlackElo "1899"]
[Annotator "NA RC"]
[PlyCount "85"]
[EventDate "2023.12.02"]
[EventType "swiss"]
[EventCountry "ESP"]
[SourceTitle "playchess.com"]
[Source "ChessBase"]
[SourceQuality "1"]
[TimeControl "5400+30"]

1. c4 {[%emt 0:00:04]} c6 {[%emt 0:00:18]} 2. Nc3 {[%emt 0:00:35]} g6 {[%emt 0:00:24]} 3. e4 {[%emt 0:01:11]} Bg7 {[%emt 0:00:17]} 4. d4 {[%emt 0:00:28]} d6 {[%emt 0:00:04]} 5. f4 {[%emt 0:01:16]} e5 {[%emt 0:03:09]} 6. dxe5 {[%emt 0:02:50]} dxe5 {[%emt 0:00:02]} 7. Qxd8+ {[%emt 0:00:30]} Kxd8 {[%emt 0:00:03]} 8. Nf3 {[%emt 0:00:36]} Nd7 {[%emt 0:02:05]} 9. Be3 {[%emt 0:01:07]} b6 {[%emt 0:04:14]} 10. Rd1 {[%emt 0:05:55]} Kc7 {[%emt 0:11:16]} 11. Be2 {[%emt 0:06:18]} Kb7 {[%emt 0:19:46]} 12. O-O {[%emt 0:02:31]} exf4 {[%emt 0:04:15]} 13. Bxf4 {[%emt 0:00:20]} Nc5 {[%emt 0:00:02]} 14. e5 {[%emt 0:08:29]} Nh6 {[%emt 0:11:30]} 15. Nd4 {[%emt 0:06:06]} Be6 {[%emt 0:15:02]} 16. b4 {[%emt 0:01:35]} g5 {[%emt 0:05:20]} 17. Bg3 {[%emt 0:02:47]} Bf8 {[%emt 0:18:33]} 18. bxc5 {[%emt 0:00:35]} Bxc5 {[%emt 0:01:48]} 19. Ne4 {[%emt 0:01:46]} Bxd4+ {[%emt 0:01:09]} 20. Rxd4 {[%emt 0:00:22]} c5 {[%emt 0:00:17]} 21. Nd6+ {[%emt 0:01:04]} Kc7 {[%emt 0:00:46]} 22. Rdd1 {[%emt 0:03:04]} Rad8 {[%emt 0:00:28]} 23. Rf6 {[%emt 0:02:25]} Ng8 {[%emt 0:00:19]} 24. Nb5+ {[%emt 0:01:14]} Kc8 {[%emt 0:00:12]} 25. Nxa7+ {[%emt 0:00:40]} Kc7 {[%emt 0:00:02]} 26. Nb5+ {[%emt 0:00:29]} Kc8 {[%emt 0:00:01]} 27. Rxd8+ {[%emt 0:00:32]} Kxd8 {[%emt 0:00:13]} 28. Rf3 {[%emt 0:00:51]} h5 {[%emt 0:00:32]} 29. Rd3+ {[%emt 0:02:26]} Ke7 {[%emt 0:01:57]} 30. Ra3 {[%emt 0:00:46]} Nh6 {[%emt 0:00:45]} 31. Ra7+ {[%emt 0:00:48]} Bd7 {[%emt 0:00:28]} 32. Bxh5 {[%emt 0:01:48]} Rd8 {[%emt 0:00:39]} 33. Bf3 {[%emt 0:02:37]} Kf8 {[%emt 0:00:29]} 34. Nd6 {[%emt 0:01:31]} Kg7 {[%emt 0:00:23]} 35. Bd5 {[%emt 0:00:49]} Kg6 {[%emt 0:00:31]} 36. h4 {[%emt 0:01:18]} g4 {[%emt 0:00:38]} 37. Bf4 {[%emt 0:00:43]} Nf5 {[%emt 0:00:28]} 38. Be4 {[%emt 0:00:32]} Be6 {[%emt 0:00:23]} 39. h5+ {[%emt 0:00:43]} Kxh5 {[%emt 0:00:28]} 40. Nxf5 {[%emt 0:00:31]} Rd1+ {[%emt 0:00:30]} 41. Kh2 {[%emt 0:00:44]} Bxf5 {[%emt 0:01:14]} 42. Bxf5 {[%emt 0:00:21]} Rf1 {[%emt 0:00:00]} 43. Kg3 {[%emt 0:00:22]} 1-0

[Event "XX Gran Hotel Bali-B 2023"]
[Site "Benidorm"]
[Date "2023.12.08"]
[Round "9.9"]
[White "Calatayud Ortega, Alberto"]
[Black "Martin Ramos, Hector"]
[Result "0-1"]
[ECO "D01"]
[WhiteElo "1863"]
[BlackElo "1953"]
[Annotator "RC"]
[PlyCount "138"]
[EventDate "2023.12.02"]
[EventType "swiss"]
[EventCountry "ESP"]
[SourceTitle "playchess.com"]
[Source "ChessBase"]
[SourceQuality "1"]
[TimeControl "5400+30"]

1. d4 {[%emt 0:00:30]} Nf6 {[%emt 0:02:29]} 2. Bf4 {[%emt 0:00:00]} g6 {[%emt 0:00:22]} 3. Nc3 {[%emt 0:00:00]} d5 {[%emt 0:00:52]} 4. f3 {[%emt 0:05:28]} Bg7 {[%emt 0:00:23]} 5. Qd2 {[%emt 0:01:08]} O-O {[%emt 0:02:16]} 6. Bh6 {[%emt 0:03:30]} c5 {[%emt 0:05:12]} 7. Bxg7 {[%emt 0:05:20]} Kxg7 {[%emt 0:01:13]} 8. e3 {[%emt 0:00:17]} a6 {[%emt 0:09:57]} 9. Nge2 {[%emt 0:02:19]} c4 {[%emt 0:06:02]} 10. g4 {[%emt 0:06:07]} b5 {[%emt 0:01:37]} 11. Ng3 {[%emt 0:07:09]} b4 {[%emt 1:05:37]} 12. Nce2 {[%emt 0:03:18]} Nc6 {[%emt 0:00:00]} 13. h4 {[%emt 0:06:05]} Rh8 {[%emt 0:00:00]} 14. g5 {[%emt 0:13:23]} Ne8 {[%emt 0:00:00]} 15. h5 {[%emt 0:03:54]} Nd6 {[%emt 0:00:00]} 16. Bh3 {[%emt 0:04:35]} Bxh3 {[%emt 0:00:00]} 17. Rxh3 {[%emt 0:00:02]} Qd7 {[%emt 0:00:00]} 18. Rh2 {[%emt 0:12:39]} Rac8 {[%emt 0:00:00]} 19. c3 {[%emt 0:06:39]} bxc3 {[%emt 0:00:00]} 20. bxc3 {[%emt 0:00:15]} Rb8 {[%emt 0:00:00]} 21. Nf4 {[%emt 0:03:29]} Nf5 {[%emt 0:00:00]} 22. h6+ {[%emt 0:01:39]} Kf8 {[%emt 0:00:00]} 23. Rg2 {[%emt 0:01:09]} Nh4 {[%emt 0:00:00]} 24. Rf2 {[%emt 0:00:04]} Nf5 {[%emt 0:00:00]} 25. Nf1 {[%emt 0:01:23]} e5 {[%emt 0:00:00]} 26. Ne2 {[%emt 0:13:08]} exd4 {[%emt 0:00:00]} 27. Nxd4 {[%emt 0:00:00]} Ncxd4 {[%emt 0:00:00]} 28. exd4 {[%emt 0:00:00]} f6 {[%emt 0:00:00]} 29. Re2 {[%emt 0:00:00]} Kf7 {[%emt 0:00:00]} 30. Kf2 {[%emt 0:00:00]} Rhe8 {[%emt 0:00:00]} 31. Rae1 {[%emt 0:00:00]} Rxe2+ {[%emt 0:00:57]} 32. Rxe2 {[%emt 0:00:38]} Re8 {[%emt 0:00:35]} 33. f4 {[%emt 0:01:56]} Rxe2+ {[%emt 0:01:48]} 34. Qxe2 {[%emt 0:00:17]} Qe6 {[%emt 0:03:08]} 35. Qxe6+ {[%emt 0:01:06]} Kxe6 {[%emt 0:00:04]} 36. gxf6 {[%emt 0:00:18]} Nd6 {[%emt 0:00:20]} 37. Ng3 {[%emt 0:00:22]} Kxf6 {[%emt 0:00:09]} 38. Kf3 {[%emt 0:00:09]} Nf5 {[%emt 0:00:39]} 39. Nf1 {[%emt 0:00:32]} Nxh6 {[%emt 0:00:15]} 40. Ne3 {[%emt 0:00:05]} Ke6 {[%emt 0:00:09]} 41. a4 {[%emt 0:00:45]} Nf5 {[%emt 0:00:22]} 42. Ng4 {[%emt 0:00:35]} Nd6 {[%emt 0:00:37]} 43. Nf2 {[%emt 0:00:48]} Kf5 {[%emt 0:00:37]} 44. Nd1 {[%emt 0:00:05]} Ne4 {[%emt 0:00:49]} 45. Ne3+ {[%emt 0:00:02]} Ke6 {[%emt 0:00:06]} 46. Nd1 {[%emt 0:00:04]} h6 {[%emt 0:01:54]} 47. Ke2 {[%emt 0:00:36]} Kf6 {[%emt 0:01:13]} 48. Kf3 {[%emt 0:00:20]} g5 {[%emt 0:00:33]} 49. fxg5+ {[%emt 0:00:02]} Kxg5 {[%emt 0:00:06]} 50. a5 {[%emt 0:01:38]} h5 {[%emt 0:00:54]} 51. Ne3 {[%emt 0:01:29]} Nxc3 {[%emt 0:00:09]} 52. Nc2 {[%emt 0:00:02]} Nb5 {[%emt 0:00:31]} 53. Nb4 {[%emt 0:00:37]} Nc7 {[%emt 0:00:45]} 54. Nc2 {[%emt 0:00:45]} h4 {[%emt 0:00:11]} 55. Ne3 {[%emt 0:00:16]} c3 {[%emt 0:00:14]} 56. Ke2 {[%emt 0:00:11]} h3 {[%emt 0:00:18]} 57. Nf1 {[%emt 0:01:02]} Kf4 {[%emt 0:00:11]} 58. Kd3 {[%emt 0:00:06]} Nb5 {[%emt 0:00:05]} 59. Nh2 {[%emt 0:00:29]} Nxd4 {[%emt 0:00:29]} 60. Kxc3 {[%emt 0:00:17]} Nc6 {[%emt 0:00:13]} 61. Kd3 {[%emt 0:00:19]} Kg3 {[%emt 0:00:11]} 62. Nf1+ {[%emt 0:00:04]} Kf2 {[%emt 0:01:10]} 63. Nh2 {[%emt 0:00:03]} Kg2 {[%emt 0:00:04]} 64. Ng4 {[%emt 0:00:13]} h2 {[%emt 0:00:04]} 65. Nxh2 {[%emt 0:00:14]} Kxh2 {[%emt 0:00:04]} 66. Ke3 {[%emt 0:00:02]} Kg2 {[%emt 0:00:16]} 67. Ke2 {[%emt 0:00:11]} d4 {[%emt 0:00:05]} 68. Kd3 {[%emt 0:00:09]} Kf3 {[%emt 0:00:04]} 69. Kc4 {[%emt 0:00:32]} Ke3 {[%emt 0:00:04]} 0-1

[Event "XX Gran Hotel Bali-B 2023"]
[Site "Benidorm"]
[Date "2023.12.08"]
[Round "9.10"]
[White "Tusu, Nicolae-Dan"]
[Black "Buitron Ramil, David"]
[Result "0-1"]
[ECO "B70"]
[WhiteElo "1818"]
[BlackElo "1948"]
[Annotator "NA RC"]
[PlyCount "126"]
[EventDate "2023.12.02"]
[EventType "swiss"]
[EventCountry "ESP"]
[SourceTitle "playchess.com"]
[Source "ChessBase"]
[SourceQuality "1"]
[TimeControl "5400+30"]

1. e4 {[%emt 0:03:01]} c5 {[%emt 0:00:01]} 2. Nf3 {[%emt 0:00:08]} d6 {[%emt 0:00:05]} 3. d4 {[%emt 0:00:04]} cxd4 {[%emt 0:00:04]} 4. Nxd4 {[%emt 0:00:04]} Nf6 {[%emt 0:00:04]} 5. Nc3 {[%emt 0:00:05]} g6 {[%emt 0:00:03]} 6. Be2 {[%emt 0:00:20]} Bg7 {[%emt 0:00:04]} 7. O-O {[%emt 0:00:22]} O-O {[%emt 0:00:02]} 8. Nb3 {[%emt 0:00:24]} a6 {[%emt 0:00:26]} 9. Be3 {[%emt 0:00:12]} b5 {[%emt 0:00:07]} 10. a3 {[%emt 0:00:20]} Bb7 {[%emt 0:00:09]} 11. f3 {[%emt 0:02:16]} Nbd7 {[%emt 0:03:54]} 12. Qd2 {[%emt 0:00:22]} Re8 {[%emt 0:00:37]} 13. Bh6 {[%emt 0:00:37]} Bh8 {[%emt 0:00:46]} 14. Rad1 {[%emt 0:01:16]} Rc8 {[%emt 0:00:44]} 15. Kh1 {[%emt 0:04:43]} Nb6 {[%emt 0:05:15]} 16. Na5 {[%emt 0:03:07]} Ba8 {[%emt 0:02:45]} 17. Be3 {[%emt 0:07:47]} Qc7 {[%emt 0:03:41]} 18. Rc1 {[%emt 0:02:36]} Red8 {[%emt 0:01:17]} 19. Rfd1 {[%emt 0:02:51]} d5 {[%emt 0:02:24]} 20. e5 {[%emt 0:04:38]} Nc4 {[%emt 0:08:17]} 21. Nxc4 {[%emt 0:01:22]} dxc4 {[%emt 0:00:02]} 22. Bd4 {[%emt 0:01:09]} Nh5 {[%emt 0:03:14]} 23. Qe3 {[%emt 0:01:56]} Rxd4 {[%emt 0:03:28]} 24. Rxd4 {[%emt 0:03:21]} Bxe5 {[%emt 0:00:10]} 25. Rh4 {[%emt 0:01:07]} Bf4 {[%emt 0:02:20]} 26. Rxf4 {[%emt 0:00:33]} Qxf4 {[%emt 0:00:03]} 27. Qxf4 {[%emt 0:00:44]} Nxf4 {[%emt 0:00:04]} 28. Rd1 {[%emt 0:00:59]} Nxe2 {[%emt 0:00:19]} 29. Nxe2 {[%emt 0:00:09]} Bc6 {[%emt 0:02:42]} 30. Kg1 {[%emt 0:00:25]} h5 {[%emt 0:01:36]} 31. Kf2 {[%emt 0:00:13]} Kf8 {[%emt 0:01:10]} 32. Ke3 {[%emt 0:00:15]} e5 {[%emt 0:01:30]} 33. g3 {[%emt 0:04:02]} Ke7 {[%emt 0:05:23]} 34. f4 {[%emt 0:00:29]} f6 {[%emt 0:01:03]} 35. fxe5 {[%emt 0:01:02]} fxe5 {[%emt 0:00:02]} 36. Nc3 {[%emt 0:03:40]} Rf8 {[%emt 0:01:14]} 37. Nd5+ {[%emt 0:01:59]} Bxd5 {[%emt 0:01:00]} 38. Rxd5 {[%emt 0:00:12]} Ke6 {[%emt 0:00:43]} 39. Ke4 {[%emt 0:00:49]} Rf2 {[%emt 0:00:02]} 40. Rxe5+ {[%emt 0:03:36]} Kf6 {[%emt 0:02:17]} 41. Rc5 {[%emt 0:01:37]} Rxc2 {[%emt 0:04:14]} 42. Rc6+ {[%emt 0:00:14]} Kg7 {[%emt 0:00:16]} 43. Rxa6 {[%emt 0:03:46]} Rxh2 {[%emt 0:00:20]} 44. a4 {[%emt 0:02:26]} Rxb2 {[%emt 0:04:17]} 45. axb5 {[%emt 0:01:59]} Rxb5 {[%emt 0:00:06]} 46. Rc6 {[%emt 0:00:30]} Rg5 {[%emt 0:01:10]} 47. Rc7+ {[%emt 0:01:16]} Kh6 {[%emt 0:01:10]} 48. Kf4 {[%emt 0:01:19]} Rg4+ {[%emt 0:00:07]} 49. Kf3 {[%emt 0:00:15]} Kg5 {[%emt 0:00:37]} 50. Rc6 {[%emt 0:03:27]} Kf5 {[%emt 0:00:17]} 51. Rc5+ {[%emt 0:00:59]} Ke6 {[%emt 0:00:16]} 52. Rc8 {[%emt 0:00:50]} Kd5 {[%emt 0:00:18]} 53. Rd8+ {[%emt 0:01:08]} Kc5 {[%emt 0:00:15]} 54. Rc8+ {[%emt 0:00:10]} Kd4 {[%emt 0:00:25]} 55. Rc7 {[%emt 0:00:27]} Kd3 {[%emt 0:00:23]} 56. Rd7+ {[%emt 0:00:30]} Kc2 {[%emt 0:00:06]} 57. Rc7 {[%emt 0:00:17]} c3 {[%emt 0:00:28]} 58. Kf2 {[%emt 0:00:26]} Kd2 {[%emt 0:00:09]} 59. Rd7+ {[%emt 0:00:12]} Kc1 {[%emt 0:00:03]} 60. Rd8 {[%emt 0:00:36]} c2 {[%emt 0:00:07]} 61. Rb8 {[%emt 0:00:40]} Kd2 {[%emt 0:00:18]} 62. Rd8+ {[%emt 0:00:06]} Kc3 {[%emt 0:00:04]} 63. Rc8+ {[%emt 0:00:10]} Rc4 {[%emt 0:00:03]} 0-1

[Event "XX Gran Hotel Bali-B 2023"]
[Site "Benidorm"]
[Date "2023.12.08"]
[Round "9.11"]
[White "Perez Garcia, Juan Angel"]
[Black "Soria Martinez, Sergio"]
[Result "1-0"]
[ECO "A53"]
[WhiteElo "1948"]
[BlackElo "1825"]
[Annotator "NA RC"]
[PlyCount "85"]
[EventDate "2023.12.02"]
[EventType "swiss"]
[EventCountry "ESP"]
[SourceTitle "playchess.com"]
[Source "ChessBase"]
[SourceQuality "1"]
[TimeControl "5400+30"]

1. d4 {[%emt 0:00:30]} d6 {[%emt 0:11:10]} 2. Nf3 {[%emt 0:00:43]} Nf6 {[%emt 0:00:06]} 3. Bf4 {[%emt 0:00:17]} c6 {[%emt 0:00:17]} 4. c4 {[%emt 0:03:34]} Nbd7 {[%emt 0:01:53]} 5. Nc3 {[%emt 0:00:51]} e6 {[%emt 0:02:58]} 6. e4 {[%emt 0:00:55]} Be7 {[%emt 0:06:48]} 7. Bd3 {[%emt 0:01:43]} e5 {[%emt 0:06:38]} 8. dxe5 {[%emt 0:00:53]} dxe5 {[%emt 0:01:44]} 9. Nxe5 {[%emt 0:05:21]} Nc5 {[%emt 0:01:41]} 10. Bc2 {[%emt 0:01:43]} Qb6 {[%emt 0:00:04]} 11. Rb1 {[%emt 0:04:08]} Ne6 {[%emt 0:00:51]} 12. Bg3 {[%emt 0:08:53]} O-O {[%emt 0:02:15]} 13. O-O {[%emt 0:00:08]} Nd4 {[%emt 0:00:04]} 14. Na4 {[%emt 0:03:56]} Qd8 {[%emt 0:00:01]} 15. Bd3 {[%emt 0:01:16]} g6 {[%emt 0:04:25]} 16. h3 {[%emt 0:03:19]} Nh5 {[%emt 0:05:53]} 17. Bh2 {[%emt 0:00:21]} Bg5 {[%emt 0:02:48]} 18. Nf3 {[%emt 0:13:17]} Bf4 {[%emt 0:03:55]} 19. Nxd4 {[%emt 0:00:38]} Bxh2+ {[%emt 0:04:27]} 20. Kxh2 {[%emt 0:01:31]} Qxd4 {[%emt 0:00:11]} 21. Qf3 {[%emt 0:00:54]} Be6 {[%emt 0:01:42]} 22. b3 {[%emt 0:03:44]} Qe5+ {[%emt 0:02:12]} 23. Kg1 {[%emt 0:01:17]} Qg5 {[%emt 0:01:51]} 24. Rfd1 {[%emt 0:05:17]} Nf4 {[%emt 0:01:59]} 25. Qg3 {[%emt 0:01:44]} Qe5 {[%emt 0:00:49]} 26. Bf1 {[%emt 0:01:16]} h5 {[%emt 0:00:55]} 27. Qe3 {[%emt 0:01:47]} b6 {[%emt 0:02:40]} 28. c5 {[%emt 0:00:33]} h4 {[%emt 0:03:00]} 29. cxb6 {[%emt 0:07:52]} axb6 {[%emt 0:00:21]} 30. Rbc1 {[%emt 0:01:33]} Qg5 {[%emt 0:01:40]} 31. Kh1 {[%emt 0:00:21]} c5 {[%emt 0:01:46]} 32. Nxb6 {[%emt 0:01:10]} Rxa2 {[%emt 0:00:38]} 33. Rxc5 {[%emt 0:04:04]} Qf6 {[%emt 0:01:25]} 34. Nd5 {[%emt 0:02:55]} Nxd5 {[%emt 0:03:20]} 35. exd5 {[%emt 0:01:02]} Rxf2 {[%emt 0:00:39]} 36. Bc4 {[%emt 0:03:57]} Bxh3 {[%emt 0:02:18]} 37. Qxh3 {[%emt 0:01:17]} Kg7 {[%emt 0:00:56]} 38. d6 {[%emt 0:01:33]} Rc2 {[%emt 0:02:50]} 39. Qf3 {[%emt 0:01:41]} Qb2 {[%emt 0:01:05]} 40. d7 {[%emt 0:01:39]} h3 {[%emt 0:01:56]} 41. Qxh3 {[%emt 0:01:14]} Qf6 {[%emt 0:01:26]} 42. Rcd5 {[%emt 0:04:44]} Rc3 {[%emt 0:00:37]} 43. Qh2 {[%emt 0:01:16]} 1-0

[Event "XX Gran Hotel Bali-B 2023"]
[Site "Benidorm"]
[Date "2023.12.08"]
[Round "9.12"]
[White "Ramakrishnan M R"]
[Black "Megias Chafer, Alejandro"]
[Result "0-1"]
[ECO "B80"]
[WhiteElo "1486"]
[BlackElo "1937"]
[Annotator "RC"]
[PlyCount "118"]
[EventDate "2023.12.02"]
[EventType "swiss"]
[EventCountry "ESP"]
[SourceTitle "playchess.com"]
[Source "ChessBase"]
[SourceQuality "1"]
[TimeControl "5400+30"]

1. e4 {[%emt 0:00:15]} c5 {[%emt 0:00:15]} 2. Nf3 {[%emt 0:00:15]} d6 {[%emt 0:00:14]} 3. d4 {[%emt 0:00:11]} cxd4 {[%emt 0:00:09]} 4. Nxd4 {[%emt 0:00:07]} Nf6 {[%emt 0:00:32]} 5. Nc3 {[%emt 0:00:13]} a6 {[%emt 0:00:06]} 6. Be3 {[%emt 0:00:25]} b5 {[%emt 1:32:14]} 7. f3 {[%emt 0:00:48]} Bb7 {[%emt 0:00:00]} 8. Qd2 {[%emt 0:01:06]} e6 {[%emt 0:00:00]} 9. O-O-O {[%emt 0:01:17]} Nbd7 {[%emt 0:00:00]} 10. Be2 {[%emt 0:02:20]} Be7 {[%emt 0:00:00]} 11. g4 {[%emt 0:01:26]} Nb6 {[%emt 0:00:00]} 12. g5 {[%emt 0:06:47]} Nfd7 {[%emt 0:00:00]} 13. Bd3 {[%emt 0:11:55]} Ne5 {[%emt 0:00:00]} 14. f4 {[%emt 0:04:43]} Nec4 {[%emt 0:00:00]} 15. Qf2 {[%emt 0:00:56]} Rc8 {[%emt 0:00:00]} 16. Nb3 {[%emt 0:03:11]} Nxe3 {[%emt 0:00:00]} 17. Qxe3 {[%emt 0:02:43]} Nc4 {[%emt 0:00:00]} 18. Bxc4 {[%emt 0:02:20]} Rxc4 {[%emt 0:00:00]} 19. Rd4 {[%emt 0:01:42]} e5 {[%emt 0:00:00]} 20. Rxc4 {[%emt 0:11:00]} bxc4 {[%emt 0:00:00]} 21. Nd2 {[%emt 0:03:47]} exf4 {[%emt 0:00:00]} 22. Qa7 {[%emt 0:04:40]} Qc8 {[%emt 0:00:00]} 23. Qd4 {[%emt 0:02:37]} O-O {[%emt 0:00:00]} 24. Nxc4 {[%emt 0:02:22]} Bxg5 {[%emt 0:00:00]} 25. Rg1 {[%emt 0:04:06]} f6 {[%emt 0:00:00]} 26. Nxd6 {[%emt 0:01:19]} Qc7 {[%emt 0:00:00]} 27. Nxb7 {[%emt 0:04:08]} Qxb7 {[%emt 0:00:00]} 28. Qd5+ {[%emt 0:00:05]} Qxd5 {[%emt 0:00:00]} 29. exd5 {[%emt 0:00:07]} f3+ {[%emt 0:00:00]} 30. Kd1 {[%emt 0:00:26]} Bf4 {[%emt 0:00:00]} 31. Rf1 {[%emt 0:07:40]} Bxh2 {[%emt 0:00:00]} 32. Rxf3 {[%emt 0:00:06]} g5 {[%emt 0:02:36]} 33. Ne4 {[%emt 0:05:05]} Kg7 {[%emt 0:02:39]} 34. d6 {[%emt 0:03:23]} h5 {[%emt 0:02:00]} 35. Rh3 {[%emt 0:04:57]} Be5 {[%emt 0:00:35]} 36. c4 {[%emt 0:02:25]} Kg6 {[%emt 0:01:00]} 37. c5 {[%emt 0:00:21]} Rd8 {[%emt 0:06:40]} 38. Rd3 {[%emt 0:01:07]} f5 {[%emt 0:00:00]} 39. Rd5 {[%emt 0:01:19]} Bf4 {[%emt 0:00:00]} 40. c6 {[%emt 0:00:40]} fxe4 {[%emt 0:00:00]} 41. c7 {[%emt 0:00:13]} Rf8 {[%emt 0:00:00]} 42. Rc5 {[%emt 0:00:27]} Bxd6 {[%emt 0:00:00]} 43. c8=Q {[%emt 0:00:07]} Rxc8 {[%emt 0:00:00]} 44. Rxc8 {[%emt 0:00:07]} Kf5 {[%emt 0:00:00]} 45. Rc6 {[%emt 0:01:00]} Be5 {[%emt 0:00:00]} 46. b4 {[%emt 0:02:36]} g4 {[%emt 0:00:21]} 47. Rh6 {[%emt 0:00:52]} Kg5 {[%emt 0:00:50]} 48. Re6 {[%emt 0:00:12]} Kf4 {[%emt 0:01:17]} 49. Ke2 {[%emt 0:00:39]} h4 {[%emt 0:01:11]} 50. Rxa6 {[%emt 0:01:01]} g3 {[%emt 0:00:47]} 51. Rh6 {[%emt 0:01:02]} Kg5 {[%emt 0:00:46]} 52. Re6 {[%emt 0:01:12]} Bd4 {[%emt 0:01:06]} 53. Re8 {[%emt 0:02:31]} h3 {[%emt 0:00:37]} 54. Rg8+ {[%emt 0:00:30]} Kf4 {[%emt 0:00:05]} 55. Kf1 {[%emt 0:00:36]} g2+ {[%emt 0:00:22]} 56. Rxg2 {[%emt 0:00:23]} hxg2+ {[%emt 0:00:05]} 57. Kxg2 {[%emt 0:00:04]} Ke3 {[%emt 0:00:08]} 58. a4 {[%emt 0:00:07]} Kd2 {[%emt 0:00:14]} 59. a5 {[%emt 0:00:08]} e3 {[%emt 0:00:12]} 0-1